Cogmind - Beta 13 @@@ ROGUE MODE // 2024.07.07 @ 23:49:34 Player: Bean Result: Destroyed by Y-45 Defender with Beam Rifle Performance ------------- Evolutions (2) 1000 Regions Visited (4) 800 Robots Destroyed (34) 170 Value Destroyed (812) 812 Prototype IDs (2) 40 Alien Tech Used (0) 0 Bonus (36) 36 TOTAL SCORE: 2858 Bonus ------- Follower Combat Kills 49 Friendly Fire -13 Cogmind --------- Core Integrity 0/550 Matter 7/300 Energy 240/240 System Corruption 5% Temperature Cool (27) Movement Walking (90) Location -8/Materials Parts ------- > --- POWER (1) -------- Nuclear Core > --- PROPULSION (2) --- VSS Leg VSS Leg > --- UTILITY (6) ------ System Shield > --- WEAPON (2) ------- Shock Rifle Maul > --- INVENTORY (5) ---- Nuclear Core Nuclear Core Hacking Suite Mace Peak State ------------ > --- POWER ------------ Light Ion Engine > --- PROPULSION ------- Xenon Bombardment Thruster Xenon Bombardment Thruster > --- UTILITY ---------- Improved Sensor Array Targeting Computer Hacking Suite Component Analysis Suite Component Analysis Suite Component Analysis Suite > --- WEAPON ----------- Mace > --- INVENTORY -------- Rocket Launcher Improved Grenade Launcher [Rating: 30] Favorites ----------- Power Light Ion Engine Engine Light Ion Engine Power Core Nuclear Core Propulsion Aluminum Leg Leg Aluminum Leg Flight Unit Flight Unit Utility Targeting Computer Device Improved Terrain Scanner Storage Small Storage Unit Processor Targeting Computer Hackware System Shield Weapon Medium Laser Energy Gun Medium Laser Ballistic Gun Assault Rifle Launcher Improved Grenade Launcher Impact Weapon Maul Slashing Weapon Katana Build | -11 -10 -10 -9 -8 ------- Run | Yrd Mat Min Mat Mat Slots Evolved 4 | . . . 2 2 Power . | . . . . . Propulsion . | . . . . . Utility 4 | . . . 2 2 Weapon . | . . . . . Parts Attached 54 | 6 5 . 10 33 Power 8 | 1 . . 1 6 Engine 5 | 1 . . 1 3 Core 3 | . . . . 3 Reactor . | . . . . . Propulsion 14 | 2 . . 4 8 Treads . | . . . . . Leg 7 | 2 . . 3 2 Wheel . | . . . . . Hover . | . . . . . Flight 7 | . . . 1 6 Utility 16 | 1 1 . 4 10 Device 9 | . . . 1 8 Storage 1 | 1 . . . . Processor 4 | . 1 . 3 . Hackware 2 | . . . . 2 Protection . | . . . . . Artifact . | . . . . . Weapon 16 | 2 4 . 1 9 Energy Gun 6 | 1 4 . . 1 Energy Cannon . | . . . . . Ballistic Gun 1 | 1 . . . . Ballistic Cannon . | . . . . . Launcher 5 | . . . . 5 Special Weapon . | . . . . . Impact Weapon 2 | . . . . 2 Slashing Weapon 2 | . . . 1 1 Piercing Weapon . | . . . . . Special Melee Weapon . | . . . . . Unidentified Prototypes 2 | . . . 2 . Parts Lost 22 | . . . 3 19 Power 4 | . . . . 4 Propulsion 8 | . . . 2 6 Utility 7 | . . . 1 6 Weapon 3 | . . . . 3 Highest Loss Streak 8 | . . . 2 8 To Critical Strikes . | . . . . . Average Slot Usage (%) 84 | . 97 100 95 66 Engine 9 | . 14 14 11 4 Core 1 | . . . . 2 Leg 17 | . 28 28 19 7 Flight 3 | . . . . 7 Device 9 | . . . 10 15 Storage 8 | . 14 14 11 2 Processor 13 | . 12 14 21 11 Hackware 1 | . . . . 3 Energy Gun 14 | . 22 28 20 3 Ballistic Gun 1 | . 5 . . . Impact Weapon 1 | . . . . 3 Slashing Weapon 2 | . . . 1 4 Naked Turns 12 | . . . . 12 Heaviest Build 20 | 11 12 12 18 20 Greatest Support 24 | 20 20 20 20 24 Greatest Overweight (x) 5 | . . . 5 3 Average Overweight (x) . | . . . . . Largest Inventory Capacity 8 | 8 8 8 8 8 Average Capacity 7 | 7 8 8 8 5 Most Carried 8 | 5 8 8 8 8 Average Carried 5 | 2 5 7 7 4 Final Capacity 8 | 8 8 8 8 5 Final Carried 8 | 2 8 5 6 4 Class Distribution -------------------- 91% | Mutant 8% | Assassin Dominant Class ---------------- Mutant | -10/Materials Mutant | -10/Mines Mutant | -9/Materials Mutant | -8/Materials Resources | -11 -10 -10 -9 -8 ----------- Run | Yrd Mat Min Mat Mat Matter Collected 587 | 213 138 1 60 175 Remotely . | . . . . . Salvage Created 978 | . 191 26 372 389 Parts 63 | . 10 2 22 29 Haulers Intercepted 1 | . 1 . . . Recyclers Shooed 1 | . 1 . . . Parts Field Recycled . | . . . . . Retrieved Matter . | . . . . . Parts Self-Destructed . | . . . . . Prevented . | . . . . . Kills | -11 -10 -10 -9 -8 ------- Run | Yrd Mat Min Mat Mat Combat Hostiles Destroyed 25 | . 5 2 7 11 Melee 9 | . . . 2 7 Guns 12 | . 5 2 5 . AOE 2 | . . . . 2 Classes Destroyed 10 | . 3 . 3 4 Tunneler 1 | . . . . 1 Hauler 1 | . 1 . . . Recycler 2 | . . . . 2 Operator 2 | . . . . 2 Watcher 3 | . . . 1 2 Swarmer 12 | . 3 2 . 7 Grunt 5 | . 2 . 3 . Duelist 1 | . . . 1 . Sentry 5 | . . . 3 2 Hunter 2 | . . . . 2 Best Kill Streak 5 | . 5 1 2 4 Combat Bots Only 5 | . 5 1 2 3 Max Kills in Single Turn 1 | . 1 1 1 1 Gunslinging . | . . . . . Exploded 1 | . . . . 1 Melee 1 | . . . 1 1 Uniques/NPCs Destroyed . | . . . . . Combat | -11 -10 -10 -9 -8 -------- Run | Yrd Mat Min Mat Mat Hostile Shots Fired 241 | . 23 15 41 162 Missed 78 | . 8 3 10 57 Damage Taken 2058 | . 132 99 488 1339 Core 786 | . 29 34 172 551 Absorbed by Shields . | . . . . . Core Remaining (%) 77 | 100 . 74 57 . Volleys Fired 75 | . 33 5 15 22 Largest 2 | . 2 2 2 1 Hottest 100 | . 100 100 100 50 Shots Fired 128 | . 66 10 30 22 Gun 108 | . 66 10 30 2 Cannon . | . . . . . Launcher 20 | . . . . 20 Special . | . . . . . Kinetic 14 | . 14 . . . Thermal 75 | . 34 10 30 1 Explosive 20 | . . . . 20 Electromagnetic 19 | . 18 . . 1 Robot Hit Streak 14 | . 14 3 8 7 Robot Miss Streak 5 | . 5 1 1 1 Penetration Max . | . . . . . Secondary Targets 1 | . 1 . . . Max Gunslinging Chain 1 | . 1 . . . Shots Hit Robots 109 | . 38 6 26 39 Core Hits 48 | . 11 2 14 21 Critical Kills 1 | . . . . 1 Critical Parts Destroyed . | . . . . . Critical Strikes 6 | . . . 4 2 Burn 2 | . . . 2 . Smash 1 | . . . . 1 Sever 3 | . . . 2 1 Melee Attacks 36 | . . . 6 30 Impact 7 | . . . . 7 Slashing 29 | . . . 6 23 Piercing . | . . . . . Sneak Attacks 2 | . . . . 2 Combat Hostiles . | . . . . . Follow-up Attacks . | . . . . . Damage Inflicted 2456 | . 461 101 422 1472 Guns 862 | . 461 101 278 22 Cannons . | . . . . . Explosions 605 | . . . . 605 Melee 942 | . . . 144 798 Ramming 47 | . . . . 47 Kinetic 126 | . 126 . . . Thermal 586 | . 207 101 278 . Explosive 605 | . . . . 605 Electromagnetic 150 | . 128 . . 22 Impact 185 | . . . . 185 Slashing 757 | . . . 144 613 Piercing . | . . . . . Highest Corruption 5 | . . . . 5 Average Corruption 5 | . . . . 5 Corruption Purged . | . . . . . Corruption Blocked . | . . . . . Effects 3 | . . . . 3 Matter Fused 1 | . . . . 1 Data Loss (minor) 2 | . . . . 2 Overload Shots . | . . . . . Overflow Damage 110 | . . . . 110 Projectiles . | . . . . . Explosions 21 | . . . . 21 Melee 89 | . . . . 89 Knockbacks . | . . . . . Impact . | . . . . . Kinetic . | . . . . . Secondary . | . . . . . Self-Inflicted Damage 267 | . . . . 267 Shots 7 | . . . . 7 Rammed 13 | . . . . 13 Targets Rammed 13 | . . . . 13 Kicked . | . . . . . Crushed . | . . . . . Highest Temperature 207 | . 207 156 162 5 Average Temperature 61 | . 73 68 48 2 Received Heat Transfer 339 | . 27 . 150 162 Siege Activations . | . . . . . Robots Corrupted . | . . . . . Combat Hostiles . | . . . . . Parts Fried 1 | . . . . 1 Impact Corruptions 2 | . . . . 2 Robots Melted . | . . . . . Combat Hostiles . | . . . . . Parts Melted 4 | . 1 1 2 . Heat Transferred 1733 | . 475 296 962 . Parts Sabotaged . | . . . . . Parts Stolen . | . . . . . Parts Stripped . | . . . . . Power Chain Reactions . | . . . . . Alert | -11 -10 -10 -9 -8 ------- Run | Yrd Mat Min Mat Mat Peak Influence 311 | . 156 250 166 311 Initial 97 | . . 60 97 8 Average 106 | . 41 176 93 120 Maximum Alert Level 1 | . . 1 . 1 Low Security (%) 82 | 100 100 66 100 72 Level 1 17 | . . 33 . 27 Level 2 . | . . . . . Level 3 . | . . . . . Level 4 . | . . . . . Level 5 . | . . . . . High Security . | . . . . . Max Security . | . . . . . Squads Dispatched 4 | . . . 1 3 Investigation 2 | . . . . 2 Extermination . | . . . . . Reinforcement 2 | . . . 1 1 Assault . | . . . . . Garrison . | . . . . . Intercept . | . . . . . Searches Triggered . | . . . . . Construction Impeded . | . . . . . Haulers Reinforced . | . . . . . Active Scanning Responses . | . . . . . Cargo Convoy Interrupts . | . . . . . Stealth | -11 -10 -10 -9 -8 --------- Run | Yrd Mat Min Mat Mat Distress Signals 3 | . . . 1 2 Communications Jammed . | . . . . . Distress Signals . | . . . . . Times Spotted 60 | . 14 8 12 26 Peak Tracking Total 7 | . 6 3 5 7 Tactical Retreats 5 | . . . 1 4 Traps | -11 -10 -10 -9 -8 ------- Run | Yrd Mat Min Mat Mat Traps Triggered 1 | . . . . 1 Indirectly . | . . . . . Trap Hack Attempts . | . . . . . Triggered . | . . . . . Disarmed . | . . . . . Reprogrammed . | . . . . . Reused . | . . . . . Traps Extracted . | . . . . . Installed . | . . . . . Triggered . | . . . . . Machines | -11 -10 -10 -9 -8 ---------- Run | Yrd Mat Min Mat Mat Machines Disabled . | . . . . . Max in Single Turn . | . . . . . Machines Repaired . | . . . . . Machines Dismantled . | . . . . . Machines Sabotaged . | . . . . . Overloaded Fab Kills . | . . . . . Hacking | -11 -10 -10 -9 -8 --------- Run | Yrd Mat Min Mat Mat Machines Accessed 8 | . 2 . 1 5 Terminals 8 | . 2 . 1 5 Fabricators . | . . . . . Repair Stations . | . . . . . Recycling Units . | . . . . . Scanalyzers . | . . . . . Garrison Access . | . . . . . Total Hacks 19 | . 5 . 2 12 Successful 5 | . 2 . 1 2 Failed 14 | . 3 . 1 10 Catastrophic 3 | . 1 . . 2 Database Lockouts . | . . . . . Manual 19 | . 5 . 2 12 Terminals 19 | . 5 . 2 12 Fabricators . | . . . . . Repair Stations . | . . . . . Recycling Units . | . . . . . Scanalyzers . | . . . . . Garrison Access . | . . . . . Terminal Hacks 4 | . 2 . 1 1 Terminal Index 1 | . 1 . . . Unreport Threat 3 | . 1 . 1 1 Fabricator Hacks . | . . . . . Repair Station Hacks . | . . . . . Recycling Unit Hacks . | . . . . . Scanalyzer . | . . . . . Garrison Access Hacks . | . . . . . Unauthorized Hacks 1 | . . . . 1 Terminals 1 | . . . . 1 Sabotage 1 | . . . . 1 Fabricators . | . . . . . Repair Stations . | . . . . . Recycling Units . | . . . . . Scanalyzers . | . . . . . Garrison Access . | . . . . . Data Cores Recovered 1 | . . . . 1 Used 1 | . . . . 1 Hacking Detections 8 | . 2 . 1 5 Full Trace Events 1 | . . . . 1 Feedback Events . | . . . . . Feedback Blocked . | . . . . . Robot Schematics Acquired . | . . . . . Robots Built . | . . . . . Authchips . | . . . . . Time . | . . . . . Total Robot Build Rating . | . . . . . Part Schematics Acquired . | . . . . . Parts Built . | . . . . . Authchips . | . . . . . Time . | . . . . . Total Part Build Rating . | . . . . . Parts Repaired . | . . . . . Time . | . . . . . Parts Recycled . | . . . . . Recycled Matter . | . . . . . Retrieved Matter . | . . . . . Retrieved Components . | . . . . . Parts Scanalyzed . | . . . . . Part Schematics Acquired . | . . . . . Parts Damaged . | . . . . . Bothacking | -11 -10 -10 -9 -8 ------------ Run | Yrd Mat Min Mat Mat Used RIF Installer . | . . . . . Robots Hacked . | . . . . . Non-combat . | . . . . . Combat . | . . . . . Robot Hacks Applied . | . . . . . Relay Couplers Released . | . . . . . Fabnet Peak Effective % . | . . . . . Robots Rewired . | . . . . . Allies Hacked . | . . . . . Hacks Repelled . | . . . . . Allies | -11 -10 -10 -9 -8 -------- Run | Yrd Mat Min Mat Mat Total Allies 3 | . . 3 . . Largest Group 3 | . . 3 1 . Highest-Rated Group 40 | . . 40 16 . Highest-Rated Ally 16 | . . 16 16 . Total Orders . | . . . . . Ally Attacks 25 | . . 24 1 . Total Damage 222 | . . 209 13 . Kills 7 | . . 7 . . Allies Corrupted . | . . . . . Allies Melted . | . . . . . Intel | -11 -10 -10 -9 -8 ------- Run | Yrd Mat Min Mat Mat Robot Analysis Total . | . . . . . Derelict Logs Recovered 2 | . . 2 . . Drone Launches . | . . . . . Drone Recoveries . | . . . . . Exploration | -11 -10 -10 -9 -8 ------------- Run | Yrd Mat Min Mat Mat Turns Passed 2075 | 49 369 341 443 873 Spaces Moved 1513 | 38 214 262 268 731 Core 72 | 14 . . 2 56 Treads . | . . . . . Legs 1011 | 24 214 262 266 245 Wheels . | . . . . . Hover . | . . . . . Flight 430 | . . . . 430 Fastest Speed 37 | 50 120 120 120 37 Average Speed 93 | 94 120 120 127 62 Slowest Speed 300 | 120 120 120 300 200 Overloaded Moves . | . . . . . Propulsion Burnouts . | . . . . . Robots Hopped 2 | . . . . 2 Cave-ins Triggered . | . . . . . Exploration Rate (%) 35 | 4 39 59 27 49 Regions Visited 4 Branch Regions 1 Pre-discovered Areas . | . . . . . Known Exits Taken . | . . . . . Unknown Exits Taken 4 | 1 1 1 1 . Scrap Searched 2 | . . 2 . . Spaces Dug 12 | . . . . 12 Terrain Destroyed 130 | . . . . 130 Melee . | . . . . . Projectile . | . . . . . AOE 130 | . . . . 130 Terrain Rammed . | . . . . . Walls Destroyed . | . . . . . Machines Disabled . | . . . . . Actions | -11 -10 -10 -9 -8 --------- Run | Yrd Mat Min Mat Mat Total 2003 | 51 258 281 332 1081 Wait 228 | . . 8 12 208 Move 1505 | 37 213 261 267 727 Hop 2 | . . . . 2 Pick Up 59 | 8 7 2 14 28 Fast Attach . | . . . . . Attach 42 | 6 1 . 7 28 Detach 5 | . . . . 5 Swap 12 | . 4 . 3 5 Drop 26 | . . 5 8 13 Fire 75 | . 33 5 15 22 Melee 36 | . . . 6 30 Ram 13 | . . . . 13 Kick . | . . . . . Crush . | . . . . . Escape Stasis . | . . . . . Rewire . | . . . . . Trap . | . . . . . Miscellaneous . | . . . . . Route ------- -11/Scrapyard -10/Materials (discovered 2 exits: *Mat / [*Min]) -10/Mines -9/Materials (discovered 3 exits: *Mat / Min / [*Sto]) -8/Materials History --------- Turn | Location | Event 6 | -11/Scrapyard | Discovered new exit (range 15) 50 | -11/Scrapyard | Entered Materials 181 | -10/Materials | Discovered new exit (range 16) 315 | -10/Materials | Build established: Mutant 394 | -10/Materials | Discovered new exit (range 13) 419 | -10/Materials | Entered Mines 422 | -10/Mines | Assisted by bots powering up and referring to "LRC-V3" 423 | -10/Mines | Learned Materials emergency access door positions 495 | -10/Mines | Learned 2 Materials zone layouts 705 | -10/Mines | Found a hidden stash of uninstalled traps 741 | -10/Mines | Discovered new exit (range 10) 760 | -10/Mines | Entered Materials 760 | -9/Materials | Accompanied by 1 ally 760 | -9/Materials | Evolved 2 slots: Utility x2 761 | -9/Materials | Identified exit to Mines 763 | -9/Materials | Discovered new exit (range 7) 1198 | -9/Materials | Discovered new exit (range 3) 1203 | -9/Materials | Entered another Materials area 1203 | -8/Materials | Evolved 2 slots: Utility x2 1372 | -8/Materials | Lost 4 parts (1p2n1w) 1715 | -8/Materials | Lost 8 parts (2p2n3u1w) 1778 | -8/Materials | Core integrity fell below 50% 1837 | -8/Materials | Lost 6 parts (1p2n2u1w) 1845 | -8/Materials | Core integrity fell below 20% 2076 | -8/Materials | Destroyed by Y-45 Defender with Beam Rifle Last Messages --------------- The unstable cave ceiling collapses. System corrupted: Matter fused (-7). K-01 Serf collects debris. Acquired Shock Rifle. K-01 Serf collects debris. O-16 Technician: "IFF HANDSHAKE FAILED. SECURING TERMINAL." The unstable cave ceiling collapses. ALERT: Hostiles spotted, dispatching reinforcements to Terminal M005. Acquired System Shield. O-16 Technician destroyed. System corrupted: Component data lost. Dropped Nuclear Core. Acquired Corrupted Unknown Hackware. Acquired 13 matter. U-05 Engineer lays Concrete. System corrupted: Component data lost. U-05 Engineer lays Concrete. Critical hit (Burn: +37). Map ----- +----------------------------------------------------+ | ???????????????????? ?????# | | ?????????????????????????## | | ??????????????????????????# | | ??????????????????????????# | | ??????????????????????????# | | ??????????????????????????# | | ??????????????????????????# | | ??????????????????????????# | | ??????????????????????????###### | | ???????????????????????????????? | | ???????????????????????????????? | | ???????????????????????????????? | | ???????????????????????????????? | | ???????????????????????????????? | | ???????????????????????????????? | | ????????###########????????????? | | ????????# ][ #????????????? | | ????????# """ ] #????????????? | | ?##?????# """ #????????????? | | ## ###### """ #????????????? | | # [ + """ #????????????? | | # # """ #????????????? | | # # = #????????????? | | # # #????????????? | | # [[ ###+#######????????????? | | # [[ @# #?????????????????? | | # [ Y #????????????# #### | | # # #?????????????# | | # # #?????????????# | | # ## ##?????????????# | | # ## #??????????????##### | | ######+### #??????????????????? | | ??# # #?######???????????? | | ??# "T" # #? ! ] #???????????? | | ??# = /# # #???????????? | | ??# # # """ #??######?##? | | ??# * + + """ #??# ? # | | ??# # # """ #??#! / """ # | | ??######## # #??# """ # | | ????# #?######??# """ # | | ????# ########### # | | ????# ### # #! """ # | | ????# ???# # # """ # | | ????#???## + *# """ # | | ?######### # # # | | # ## # # # =# ## | | ? ## # # % | | ?? """ | | ??""""" | | ??""""" # ## # # # + | +----------------------------------------------------+ Best States ------------- Heat Dissipation 45 Energy Generation 14 Energy Capacity 280 Matter Stores 300 Matter Capacity 300 Sight Range 18 Robot Scan Range 15 Terrain Scan Range 16 Terrain Scan Density 10 Evasion (%) 62 Targeting Accuracy 10 Recoil Reduction 4 Offensive Hacking 10 Defensive Hacking 10 Item Schematics ----------------- None Robot Schematics ------------------ None Fabricated ------------ Nothing Alien Tech Used ----------------- None Achievements -------------- None Challenges ------------ None Game ------ Seed SiegeMatterHammer Manual? 0 Play Time 00:25:04 Cumulative 17.5 hours Start 2024.07.07 @ 23:00:22 End 2024.07.07 @ 23:49:34 Sessions 1 Manual Loads 0 Difficulty Rogue Special Mode None Game No. 51 Rogue 51 Adventurer 0 Explorer 0 Win Type - Total 0 Types 0/0/0/0/0/0/0/0/0 Lore% 20 Gallery% 27 Achievement% 22 Wizard Run 0 Options --------- Layout 2 ASCII 0 Keyboard 0 Movement Numpad Keybinds 0 Fullscreen 1 Font 24/Smallcaps Map View 50x44 Zoom Use 0% Tactical HUD 0 Map Filters NONE Filters NONE Steam 1 RUN: 3e35fcb1-0e72-459d-b481-ef301894ca79